bitfinex/quotes_ETHUSD_20220731
["timestamp","ask_amount","ask_price","bid_price","bid_amount"]
[1659251973627,5.11232204,1703.7,1703.1,10.76128824]
[1659251974345,5.1157526,1703.7,1703.1,10.76128824]
[1659251975093,5.11232204,1703.7,1703.1,10.76128824]
[1659251976511,8.01036876,1703.7,1703.1,10.76128824]
[1659251978000,1.7613006,1703.6,1703.1,10.76128824]
[1659251978201,1.7613006,1703.6,1703.1,10.75864369]
[1659251978202,2.0613006,1703.6,1703.1,10.75864369]
[1659251978540,2.0613006,1703.6,1703.1,7.98274369]
[1659251979401,2.89804672,1703.5,1703.1,0.06538824]
[1659251981828,2.89804672,1703.5,1702.8,9.8873]
[1659251982010,2.89804672,1703.5,1702.8,10.1373]
[1659251982201,2.89804672,1703.5,1702.8,6.6373]
[1659251982401,2.90133376,1703.5,1702.8,6.6373]
[1659251982602,2.90133376,1703.5,1702.8,10.15398964]
[1659251982803,0.00328704,1703.5,1702.9,6.39804672]
[1659251983043,0.00328704,1703.5,1703.0,3.9408]
[1659251983245,0.00328704,1703.5,1703.1,0.01668737]
[1659251983464,0.65,1703.7,1703.1,0.01668737]
[1659251983603,0.34472204,1703.6,1703.1,0.01668737]
[1659251983803,3.64803739,1703.6,1703.1,0.01668737]
[1659251984653,3.64472204,1703.6,1703.1,0.01668737]
[1659251985955,3.64472204,1703.6,1703.3,0.19987021]
[1659251986120,3.64472204,1703.6,1703.1,0.01668737]
[1659251988711,2.7970829,1703.8,1703.2,0.19987021]
[1659251988712,0.05,1703.8,1703.2,0.19987021]
[1659251988912,1.761001,1703.9,1703.3,0.01838835]
[1659251988913,1.811001,1703.9,1703.3,0.01838835]
[1659251989158,0.0032829,1703.8,1703.3,0.01838835]
[1659251989362,0.0032829,1703.8,1703.4,0.19987021]
[1659251989970,4.3124,1704.0,1703.4,0.19987021]
[1659251990116,7.76044672,1704.0,1703.4,0.19987021]
[1659251990314,3.0,1703.9,1703.4,0.19987021]
[1659251991452,3.0,1703.9,1703.7,0.19987021]
[1659251992339,1.3,1704.0,1703.7,0.19987021]
[1659251992514,4.0,1704.0,1703.7,0.19987021]
[1659251994556,4.0,1704.0,1703.5,0.64440219]
[1659251995184,4.0,1704.0,1703.5,0.20370219]
[1659251996573,6.89804672,1704.0,1703.4,0.4407]
[1659251996796,8.54141108,1704.0,1703.3,17.53]
[1659251997010,8.84141108,1704.0,1703.3,17.53]
[1659251997157,9.14141108,1704.0,1703.3,17.53]
[1659251997641,9.14456575,1704.0,1703.3,17.53]
[1659251997845,9.14456575,1704.0,1703.3,6.03]
[1659251998233,11.86992259,1704.0,1703.3,6.03]
[1659251998429,11.86676792,1704.0,1703.3,6.03]
[1659251998821,11.87012534,1704.0,1703.3,6.03]
[1659251999006,11.87012534,1704.0,1703.3,9.53]
[1659251999206,0.34472204,1703.9,1703.3,9.53]
[1659251999443,0.34472204,1703.9,1703.3,6.03]
[1659252000339,5.0071154,1703.9,1703.3,6.03]
[1659252000554,3.3,1703.8,1703.3,6.03]
[1659252000857,3.6,1703.8,1703.3,6.03]
[1659252001874,3.6,1703.8,1703.3,6.22987021]
[1659252002375,3.6,1703.8,1703.3,6.22717709]
[1659252004451,3.6,1703.8,1703.3,9.56602381]
[1659252004655,3.6,1703.8,1703.6,0.19987021]
[1659252005093,3.5898288,1703.8,1703.6,0.19987021]
[1659252006710,0.5898288,1703.8,1703.6,0.19987021]
[1659252006912,5.41221204,1703.9,1703.6,0.19987021]
[1659252008095,5.41221204,1703.9,1703.3,12.53464263]
[1659252008328,5.41221204,1703.9,1703.3,12.48464263]
[1659252008609,5.41221204,1703.9,1703.4,3.5]
[1659252008756,3.94472204,1703.9,1703.3,12.48464263]
[1659252008926,0.94472204,1703.9,1703.3,12.48464263]
[1659252009129,0.2495508,1703.6,1703.3,12.48464263]
[1659252009552,0.2495508,1703.6,1703.3,12.92544263]
[1659252010118,0.2495508,1703.6,1703.3,9.42544263]
[1659252010658,0.2495508,1703.6,1703.3,12.92544263]
[1659252011657,0.2495508,1703.6,1703.3,9.42544263]
[1659252011860,0.2495508,1703.6,1703.4,2.89804672]
[1659252014261,0.69472204,1703.9,1703.4,2.89804672]
[1659252014479,0.2495508,1703.6,1703.4,2.89804672]
[1659252019648,0.39472204,1703.9,1703.4,2.89804672]
[1659252019876,0.2495508,1703.5,1703.4,2.89804672]
[1659252021177,0.2495508,1703.5,1703.3,6.46810688]
[1659252021378,0.2495508,1703.5,1703.3,6.02730688]
[1659252022299,0.24677196,1703.5,1703.3,6.02730688]
[1659252023112,0.24677196,1703.5,1703.3,8.9253536]
[1659252023268,0.24677196,1703.5,1703.3,8.92918558]
[1659252024822,0.24677196,1703.5,1703.1,3.5]
[1659252024823,0.24677196,1703.5,1703.1,0.11106509]
[1659252024984,0.34472204,1703.7,1703.1,0.41106509]
[1659252024985,0.39472204,1703.7,1703.1,0.41106509]
[1659252025190,0.24677196,1703.4,1703.1,0.41106509]
[1659252025864,0.24677196,1703.4,1703.1,3.91106509]
[1659252026065,0.24677196,1703.4,1703.2,2.89804672]
[1659252026498,0.24677196,1703.4,1703.2,2.9018787]
[1659252026713,0.24677196,1703.4,1703.3,2.89804672]
[1659252026918,0.24677196,1703.4,1703.3,3.29791693]
[1659252027073,0.24677196,1703.4,1703.3,2.89804672]
[1659252033630,0.24677196,1703.4,1703.3,6.09784672]
[1659252034281,0.24677196,1703.4,1703.3,6.04784672]
[1659252035930,0.24677196,1703.4,1703.3,10.04771693]
[1659252036154,0.24677196,1703.4,1703.3,13.78851693]
[1659252036474,0.24677196,1703.4,1703.3,13.28864672]
[1659252036644,0.24677196,1703.4,1703.3,9.84784672]
[1659252039090,0.24677196,1703.4,1703.3,9.54784672]
[1659252041951,7.196e-05,1703.4,1703.3,9.74771693]
[1659252042159,7.196e-05,1703.4,1703.3,15.92471693]
[1659252043969,7.196e-05,1703.4,1703.3,15.72484672]
[1659252045240,7.196e-05,1703.4,1703.3,9.54784672]
[1659252046538,7.196e-05,1703.4,1703.3,15.72484672]
[1659252047443,7.196e-05,1703.4,1703.3,9.54784672]
[1659252047623,7.196e-05,1703.4,1703.3,15.72484672]
[1659252047824,7.196e-05,1703.4,1703.3,9.54784672]
[1659252048134,1.17907196,1703.4,1703.3,3.1998]
[1659252048334,1.17907196,1703.4,1703.2,0.07519368]
[1659252048582,1.17907196,1703.4,1703.2,2.9732404]
[1659252048866,1.179,1703.4,1703.2,2.9732404]
[1659252049239,0.59,1703.4,1703.2,2.9732404]
[1659252051153,0.59,1703.4,1703.2,2.89804672]
[1659252052180,0.59,1703.4,1703.1,6.03064672]
[1659252054861,0.39472204,1703.7,1703.1,6.03064672]
[1659252055077,0.34472204,1703.7,1703.1,6.03064672]
[1659252055442,0.34472204,1703.7,1703.0,7.60383198]
[1659252055443,2.89804672,1703.6,1703.0,0.00383198]
[1659252055663,5.87426132,1703.6,1702.9,7.916]
[1659252055953,2.89804672,1703.6,1702.9,7.916]
[1659252056170,6.39804672,1703.6,1702.9,7.916]
[1659252056746,2.89804672,1703.6,1702.9,7.916]
[1659252056995,3.19804672,1703.6,1702.9,7.916]
[1659252057142,3.3,1703.5,1702.9,7.916]
[1659252058768,3.30332038,1703.5,1702.9,7.916]
[1659252058999,3.30332038,1703.5,1702.9,11.41983198]
[1659252059219,3.64804242,1703.5,1702.9,7.91983198]
[1659252059669,3.64472204,1703.5,1702.9,7.91983198]
[1659252060284,3.64472204,1703.5,1702.9,7.93641669]
[1659252060513,3.64804242,1703.5,1702.9,7.93641669]
[1659252061131,3.64472204,1703.5,1702.9,7.93641669]
[1659252061692,3.64832881,1703.5,1702.9,7.93641669]
[1659252062581,3.64472204,1703.5,1702.9,7.93641669]
[1659252063026,3.64827764,1703.5,1702.9,7.93641669]
[1659252063782,3.64099966,1703.5,1702.9,7.93641669]
[1659252064287,3.64455526,1703.5,1702.9,7.93641669]
[1659252065216,3.64099966,1703.5,1702.9,7.93641669]
[1659252065614,3.64455526,1703.5,1702.9,7.93641669]
[1659252066458,3.64099966,1703.5,1702.9,7.93641669]
[1659252066946,5.87408651,1703.4,1702.7,3.0121]
[1659252067105,6.17408651,1703.4,1702.7,2.9621]
[1659252067299,3.19804672,1703.4,1702.7,2.9621]
[1659252067950,3.19804672,1703.4,1702.7,6.46593198]
[1659252068317,3.19804672,1703.4,1702.7,2.96593198]
[1659252068928,3.19804672,1703.4,1702.7,6.46593198]
[1659252069131,5.81409762,1703.5,1702.8,6.39804672]
[1659252069339,4.29963354,1703.5,1702.9,2.9018787]
[1659252069652,0.00335592,1703.5,1703.1,0.49987021]
[1659252069848,0.00335592,1703.5,1703.2,3.33884672]
[1659252070142,0.00335592,1703.5,1703.3,0.00383198]
[1659252070331,3.1363,1703.8,1703.3,0.00383198]
[1659252071343,2.499,1703.9,1703.3,2.9018787]
[1659252071510,8.2640907,1704.0,1703.3,2.9018787]
[1659252071720,8.2107,1704.0,1703.3,2.9018787]
[1659252071903,5.62311,1704.1,1703.5,0.19987021]
[1659252072105,1.0,1704.1,1703.7,0.19987021]
[1659252072345,0.4895,1704.2,1703.8,2.89804672]
[1659252072346,0.4395,1704.2,1703.8,2.89804672]
[1659252072581,0.4395,1704.2,1704.0,0.19987021]
[1659252072764,0.4395,1704.2,1704.1,3.30174891]
[1659252072965,0.44277549,1704.2,1704.1,6.80174891]
[1659252073149,0.05,1704.6,1704.2,5.0]
[1659252073357,0.05,1704.9,1704.3,2.91461781]
[1659252073554,0.05,1705.0,1704.7,0.19987021]
[1659252073789,4.0793,1705.1,1704.7,0.19987021]
[1659252073790,3.0793,1705.1,1704.7,0.19987021]
[1659252078141,3.0793,1705.1,1704.6,0.09839009]
[1659252078344,3.0793,1705.1,1704.6,2.99643681]
[1659252078577,8.93227385,1705.2,1704.6,2.99643681]
[1659252079694,8.92812204,1705.2,1704.6,2.99643681]
[1659252079862,8.93227385,1705.2,1704.6,2.99643681]
[1659252080294,3.0,1705.1,1704.6,2.99643681]
[1659252080616,3.3,1705.1,1704.6,2.99643681]
[1659252081210,3.3,1705.1,1704.6,2.89804672]
[1659252082420,8.2834,1705.2,1704.6,2.89804672]
[1659252082575,8.28733792,1705.2,1704.6,2.89804672]
[1659252083611,8.28733792,1705.2,1704.6,2.99643681]
[1659252083612,8.2834,1705.2,1704.6,2.99643681]
[1659252083887,8.2834,1705.2,1704.4,0.05]
[1659252083888,6.69804672,1705.1,1704.4,0.05]
[1659252084050,6.39804672,1705.0,1704.3,0.05]
[1659252084212,6.49804672,1704.9,1704.2,0.05]
[1659252084394,6.49804672,1704.9,1704.1,0.05]
[1659252084595,0.34472204,1704.8,1704.0,13.6958]
[1659252084833,0.34472204,1704.8,1704.0,16.54384672]
[1659252084834,0.5207064,1704.8,1704.0,16.54384672]
[1659252085001,0.5207064,1704.8,1704.0,13.6458]
[1659252085002,3.41875312,1704.8,1704.0,13.6458]
[1659252085211,0.17598436,1704.7,1704.0,13.6458]
[1659252085415,0.00383967,1704.6,1704.0,13.6458]
[1659252085722,0.00383967,1704.6,1704.1,2.89804672]
[1659252085924,0.00322709,1704.7,1704.2,0.19987021]
[1659252086126,0.00322709,1704.7,1704.3,2.89804672]
[1659252086733,0.00383967,1704.8,1704.3,2.89804672]
[1659252088752,0.34444302,1704.9,1704.4,0.02430189]
[1659252088957,0.34444302,1704.9,1704.5,3.09791693]
[1659252089651,0.34088237,1704.9,1704.5,3.09791693]
[1659252092960,0.34088237,1704.9,1704.3,0.4405]
[1659252093114,0.34088237,1704.9,1704.3,2.89804672]
[1659252093560,0.34472204,1704.9,1704.3,3.09791693]
[1659252093717,0.34472204,1704.9,1704.3,3.10174891]
[1659252094363,0.34472204,1704.9,1704.3,6.60174891]
[1659252094558,0.34472204,1704.9,1704.3,3.10174891]
[1659252096883,0.34472204,1704.9,1704.3,3.14402984]
[1659252097090,0.34472204,1704.9,1704.3,6.64402984]
[1659252097374,0.34472204,1704.9,1704.3,3.14402984]
[1659252098073,0.34472204,1704.9,1704.3,3.14052621]
[1659252098641,0.34472204,1704.9,1704.3,6.64052621]
[1659252098835,0.34472204,1704.9,1704.3,3.14052621]
[1659252101254,0.34472204,1704.9,1704.5,0.19987021]
[1659252101459,0.34472204,1704.9,1704.3,6.98109572]
[1659252101839,0.34472204,1704.9,1704.3,3.681156]
[1659252104988,0.34472204,1704.9,1704.3,9.361242]
[1659252107208,0.34472204,1704.9,1704.3,9.061242]
[1659252108460,0.34472204,1704.9,1704.3,6.16669891]
[1659252108695,4.70938876,1704.9,1704.3,5.680086]
[1659252109869,4.71272739,1704.9,1704.3,5.680086]
[1659252110718,4.70938876,1704.9,1704.3,5.680086]
[1659252111147,4.7127096,1704.9,1704.3,5.680086]
[1659252111728,5.0127096,1704.9,1704.3,5.680086]
[1659252111928,5.30938876,1704.9,1704.3,5.680086]
[1659252112304,5.31271027,1704.9,1704.3,5.680086]
[1659252113304,5.30938876,1704.9,1704.3,5.680086]
[1659252113705,5.31271027,1704.9,1704.3,5.680086]
[1659252114563,5.30938876,1704.9,1704.3,5.680086]
[1659252114967,5.3127181,1704.9,1704.3,5.78737401]
[1659252115781,5.30938876,1704.9,1704.3,5.78737401]
[1659252116187,5.31271751,1704.9,1704.3,5.78737401]
[1659252117273,5.30938876,1704.9,1704.3,5.78737401]
[1659252117580,5.31271751,1704.9,1704.3,5.78737401]
[1659252118615,5.30938876,1704.9,1704.3,5.78737401]
[1659252119150,5.31271407,1704.9,1704.3,5.78737401]
[1659252119895,5.30938876,1704.9,1704.3,5.78737401]
[1659252120394,5.3127144,1704.9,1704.3,5.78737401]
[1659252121329,5.30938876,1704.9,1704.3,5.78737401]
[1659252121755,5.3127144,1704.9,1704.3,5.78737401]
[1659252122541,5.30938876,1704.9,1704.3,5.78737401]
[1659252123057,5.31271592,1704.9,1704.3,5.78737401]
[1659252123761,5.30938876,1704.9,1704.3,5.78737401]
[1659252124115,5.31286374,1704.9,1704.3,5.78737401]
[1659252125162,5.30938876,1704.9,1704.3,5.78737401]
[1659252125549,5.31286374,1704.9,1704.3,5.78737401]
[1659252126184,1.81481702,1704.9,1704.3,8.68542073]
[1659252126388,1.47131175,1705.3,1705.0,0.39987021]
[1659252126596,0.47131175,1705.5,1705.2,3.5]
[1659252126906,0.47131175,1705.5,1705.3,6.39804672]
[1659252127198,0.47131175,1706.0,1705.4,3.33824672]
[1659252127502,0.70337021,1706.2,1705.4,2.89804672]
[1659252127503,0.47131175,1706.1,1705.4,2.89804672]
[1659252128801,0.47131175,1706.1,1705.5,3.5]
[1659252129117,0.47131175,1706.1,1705.7,0.19987021]
[1659252129118,0.00266307,1706.1,1705.7,0.19987021]
[1659252129899,9.96120922,1706.4,1705.7,0.19987021]
[1659252129900,10.01120922,1706.4,1705.7,0.65948932]
[1659252130266,9.96120922,1706.4,1705.7,3.55753604]
[1659252130882,9.96387226,1706.4,1705.7,3.55753604]
[1659252131084,10.26387226,1706.4,1705.7,3.55753604]
[1659252131268,3.0,1706.3,1705.7,3.55753604]
[1659252132707,3.0,1706.3,1705.8,2.89804672]
[1659252132859,9.3104,1706.4,1705.9,4.95961911]
[1659252133063,9.3104,1706.4,1706.0,0.19987021]
[1659252133261,2.7564,1706.6,1706.0,0.19987021]
[1659252133262,0.05,1706.7,1706.1,2.89804672]
[1659252133477,1.0,1706.8,1706.1,6.19412076]
[1659252133709,1.0,1706.8,1706.2,3.52091428]
[1659252133860,11.3418,1706.9,1706.5,0.19987021]
[1659252133861,0.00365265,1706.7,1706.5,0.19987021]
[1659252134300,0.00365265,1706.7,1706.6,0.34471435]
[1659252134509,0.00365265,1706.7,1706.6,0.33456435]
[1659252134716,0.3,1707.0,1706.6,0.33456435]
[1659252136176,0.3,1707.0,1706.5,0.19987021]
[1659252136177,2.89804672,1706.9,1706.3,0.05]
[1659252136424,2.89804672,1706.9,1706.2,10.699]
[1659252136807,6.21902611,1707.0,1706.2,13.93161107]
[1659252136985,3.0,1706.9,1706.2,13.93161107]
[1659252137813,3.0,1706.9,1706.2,13.93552521]
[1659252138381,3.01014999,1706.9,1706.2,13.93552521]
[1659252140730,3.31014999,1706.9,1706.2,13.93552521]
[1659252141918,3.31014999,1706.9,1706.2,14.37552521]
[1659252142763,8.20819671,1706.9,1706.2,14.37552521]
[1659252142966,6.19804672,1706.8,1706.2,10.699]
[1659252143171,6.19804672,1706.8,1706.2,2.8311]
[1659252143729,6.19804672,1706.8,1706.2,3.16566435]
[1659252145565,6.19804672,1706.8,1706.0,3.2975]
[1659252145566,2.89804672,1706.7,1706.0,3.2975]
[1659252145725,3.0,1706.6,1705.9,7.778]
[1659252145925,3.19804672,1706.5,1705.9,7.728]
[1659252146730,0.01014999,1706.4,1705.9,7.728]
[1659252148404,0.01014999,1706.4,1705.9,10.62604672]
[1659252148706,0.01014999,1706.4,1705.9,10.96454875]
[1659252157883,0.01014999,1706.4,1705.9,10.96235658]
[1659252160765,0.01014999,1706.4,1705.9,16.63711558]
[1659252162664,3.05,1706.6,1705.9,17.07721558]
[1659252162665,0.05,1706.6,1705.9,17.07721558]
[1659252162902,9.38349324,1706.7,1705.9,16.63711558]
[1659252163112,9.63349324,1706.7,1705.9,16.63711558]
[1659252163475,9.6302,1706.7,1705.9,16.63711558]
[1659252165491,9.6302,1706.7,1706.0,6.19373469]
[1659252165691,9.6302,1706.7,1706.1,3.67261107]
[1659252166492,9.64034999,1706.7,1706.1,3.67261107]
[1659252166904,9.64034999,1706.7,1706.1,3.23261107]
[1659252167426,1.61014999,1706.7,1706.1,3.23261107]
[1659252167594,0.22886232,1706.9,1706.2,3.33804672]
[1659252167595,0.05,1706.9,1706.2,3.33804672]
[1659252167783,3.9,1707.0,1706.3,2.89804672]
[1659252167784,3.95,1707.0,1706.3,2.89804672]
[1659252167984,0.00348549,1706.8,1706.3,2.89804672]
[1659252168818,0.01014999,1706.9,1706.3,2.89804672]
[1659252169414,0.01014999,1706.9,1706.2,3.7268]
[1659252169415,2.89804672,1706.8,1706.2,3.7268]
[1659252169620,2.89804672,1706.8,1706.1,2.7538]
[1659252169621,3.31014999,1706.7,1706.1,2.7038]
[1659252169829,6.81014999,1706.7,1706.1,2.7038]
[1659252170042,3.31014999,1706.7,1706.1,2.7038]
[1659252170327,3.31014999,1706.7,1705.9,5.724759]
[1659252170328,2.89804672,1706.5,1705.9,5.724759]
[1659252170484,3.5,1706.4,1705.9,5.674759]
[1659252170686,7.19804672,1706.3,1705.9,5.674759]
[1659252170912,2.89804672,1706.2,1705.9,5.674759]
[1659252171281,3.3,1706.1,1705.9,5.674759]
[1659252171518,6.19804672,1706.1,1705.9,5.674759]
[1659252176709,9.68914999,1706.0,1705.9,5.674759]
[1659252177153,12.68914999,1706.0,1705.9,5.674759]
[1659252177841,4.18914999,1706.0,1705.9,5.6725961]
[1659252178526,3.31014999,1706.0,1705.9,5.6725961]
[1659252179866,6.20819671,1706.0,1705.9,0.0005961]
[1659252180360,14.15879671,1706.0,1705.9,0.0005961]
[1659252180522,20.33579671,1706.0,1705.9,0.0005961]
[1659252180720,31.01320089,1706.0,1705.9,0.0005961]
[1659252181036,31.01320089,1706.0,1704.8,3.1799]
[1659252181037,0.3,1705.9,1704.8,3.1799]
[1659252181242,1.0,1705.5,1704.8,3.1799]
[1659252181434,2.89804672,1705.4,1704.6,8.1469]
[1659252181797,3.0,1705.3,1704.6,8.1469]
[1659252181941,0.3,1705.2,1704.6,7.7065]
[1659252182978,0.3,1705.2,1704.6,7.71858306]
[1659252183144,0.3,1705.2,1704.6,8.05314741]
[1659252183344,0.3,1705.2,1704.6,8.49354741]
[1659252183650,5.89804672,1705.3,1704.6,8.49354741]
[1659252184094,5.89804672,1705.3,1704.6,8.05314741]
[1659252185999,5.90819671,1705.3,1704.6,8.05314741]
[1659252188896,5.90580701,1705.3,1704.6,8.05314741]
[1659252198887,3.00776029,1705.3,1704.6,8.05314741]
[1659252199096,3.00776029,1705.3,1704.7,3.73995275]
[1659252199276,3.00776029,1705.3,1704.7,6.63799947]
[1659252200019,3.00776029,1705.3,1704.8,14.45667855]
[1659252200243,8.9506,1705.5,1704.9,3.33834672]
[1659252200244,1.05,1705.5,1704.9,3.33834672]
[1659252200381,1.0,1705.5,1704.9,3.33834672]
[1659252200591,1.0,1705.5,1705.0,0.19987021]
[1659252200795,1.0,1705.5,1705.1,0.77852069]
[1659252201001,1.0,1705.5,1705.3,0.19987021]
[1659252201712,1.0,1705.5,1705.2,0.4403]
[1659252201896,1.0,1705.5,1705.2,3.33834672]
[1659252204807,1.0,1705.5,1705.2,2.89804672]
[1659252205244,1.0,1705.5,1705.1,0.33822069]
[1659252205471,1.0,1705.5,1704.9,2.7193]
[1659252205472,2.89804672,1705.4,1704.9,2.7193]
[1659252205615,3.0,1705.3,1704.9,2.7193]
[1659252206014,3.31014999,1705.3,1704.9,2.7193]
[1659252206330,3.31014999,1705.3,1704.8,0.34622476]
[1659252207331,0.05330487,1705.5,1704.9,2.89804672]
[1659252207533,0.00330487,1705.5,1705.2,0.19987021]
[1659252207747,0.00330487,1705.5,1705.0,3.62207021]
[1659252208094,0.05,1705.7,1705.1,2.89804672]
[1659252208255,2.90819671,1705.7,1705.1,0.33456435]
[1659252208463,2.89804672,1705.6,1705.1,0.33456435]
[1659252208665,2.89804672,1705.6,1704.9,0.05]
[1659252208864,2.89804672,1705.6,1704.8,0.05]
[1659252209047,2.89804672,1705.6,1704.7,6.0899]
[1659252209048,0.01014999,1705.5,1704.7,6.1399]
[1659252209283,3.19804672,1705.4,1704.8,3.64581919]
[1659252209441,2.89804672,1705.3,1704.8,3.64581919]
[1659252209885,2.95819671,1705.5,1704.8,14.67547244]
[1659252210050,3.0,1705.4,1704.8,15.11587244]
[1659252211850,3.0,1705.4,1704.8,0.78763349]
[1659252211995,3.0,1705.4,1704.8,0.34723349]
[1659252215991,0.00246541,1705.3,1704.8,0.34723349]
[1659252217988,2.90051213,1705.3,1704.8,0.34723349]
[1659252223566,3.0,1705.4,1704.8,0.34723349]
[1659252223714,1.05329012,1705.5,1704.9,9.89804672]
[1659252223917,0.00329012,1705.5,1705.4,0.19987021]
[1659252224722,8.0724,1705.8,1705.4,0.19987021]
[1659252225952,8.0724,1705.8,1705.2,0.33209895]
[1659252226158,8.3724,1705.8,1705.2,0.33209895]
[1659252226368,0.01014998,1705.7,1705.2,0.33209895]
[1659252228366,0.01014998,1705.7,1705.4,0.19987021]
[1659252231433,0.01014998,1705.7,1705.4,0.19616181]
[1659252234208,4.05332539,1706.0,1705.4,3.82607324]
[1659252234209,4.35,1706.0,1705.4,3.82607324]
[1659252234420,4.3,1706.0,1705.4,3.82607324]
[1659252234911,0.00246541,1706.0,1705.4,3.62991143]
[1659252235126,0.00246541,1706.0,1705.4,0.33209895]
[1659252235603,0.00246541,1706.0,1705.3,7.1808]
[1659252235804,0.00246541,1706.0,1705.3,6.7406]
[1659252236250,3.00246541,1706.0,1705.3,6.7406]
[1659252237244,3.00246541,1706.0,1705.4,0.34845239]
[1659252237453,3.00580248,1706.0,1705.4,0.34845239]
[1659252237607,3.00580248,1706.0,1705.4,6.74649911]
[1659252237808,3.00580248,1706.0,1705.4,7.18669911]
[1659252238247,3.00580248,1706.0,1705.4,3.68669911]
[1659252238424,3.00246541,1706.0,1705.4,3.68669911]
[1659252239030,3.00246541,1706.0,1705.4,7.18669911]
[1659252239442,3.00246541,1706.0,1705.4,3.68669911]
[1659252239671,3.00246541,1706.0,1705.4,7.18669911]
[1659252240172,3.00246541,1706.0,1705.4,3.68669911]
[1659252240846,3.00246541,1706.0,1705.4,7.18669911]
[1659252241458,3.00246541,1706.0,1705.4,3.68669911]
[1659252241632,0.00383819,1705.5,1705.2,0.05]
[1659252241834,9.15608391,1705.3,1704.9,0.05]
[1659252242033,9.15608391,1705.3,1704.6,0.05]
[1659252242034,2.89804672,1705.2,1704.6,0.05]
[1659252242274,6.69804672,1705.2,1704.5,5.7596]
[1659252242435,3.19804672,1705.1,1704.5,5.7596]
[1659252242632,0.01014998,1705.0,1704.5,5.7596]
[1659252243584,0.01014998,1705.0,1704.4,7.9919]
[1659252243585,0.00383819,1704.9,1704.4,7.9919]
[1659252243738,0.01014998,1704.8,1704.4,7.9919]
[1659252243942,2.9081967,1704.8,1704.2,0.4405]
[1659252244139,2.9081967,1704.8,1703.9,0.20678684]
[1659252244140,0.00383819,1704.2,1704.0,0.05]
[1659252244340,0.01014998,1704.1,1703.9,0.20678684]
[1659252244577,2.9081967,1704.1,1703.9,0.20678684]
[1659252244750,5.89804672,1704.0,1703.5,0.05]
[1659252244935,2.89804672,1703.9,1703.3,0.05]
[1659252245137,2.89804672,1703.9,1703.0,11.42508684]
[1659252245138,3.6303416,1703.8,1703.1,0.05]
[1659252245382,2.89804672,1703.7,1703.0,11.03428684]
[1659252245585,2.89804672,1703.7,1703.0,8.19868684]
[1659252245958,0.02265703,1703.6,1702.9,0.05]
[1659252246172,0.00383819,1703.2,1702.8,0.05234399]
[1659252246388,2.90188491,1703.2,1702.8,0.00234399]
[1659252246550,2.87800554,1703.0,1702.5,0.05]
[1659252246757,2.89804672,1702.9,1702.3,0.491]
[1659252246985,2.94804672,1703.0,1702.4,3.5]
[1659252247186,0.00383819,1703.2,1702.4,3.5]
[1659252247187,0.05383819,1703.2,1702.5,3.5]
[1659252247466,3.65,1703.3,1702.6,0.4409]
[1659252247664,6.49804672,1703.3,1702.6,0.4409]
[1659252247875,6.51686556,1703.3,1702.6,0.38781287]
[1659252249672,6.51686556,1703.3,1702.6,0.83110144]
[1659252250282,6.51686556,1703.3,1702.6,0.82871287]
[1659252250688,3.61881884,1703.3,1702.6,3.9229214]
[1659252250996,3.61881884,1703.3,1702.6,3.72908177]
[1659252251150,3.61881884,1703.3,1702.6,7.22908177]
[1659252251352,3.61881884,1703.3,1702.6,3.72908177]
[1659252251584,3.61881884,1703.3,1702.7,3.5]
[1659252251979,3.61881884,1703.3,1702.7,0.34966224]
[1659252252151,3.01881884,1703.3,1702.7,0.34966224]
[1659252252352,0.01881884,1703.3,1702.7,0.35198435]
[1659252253151,0.01881884,1703.3,1702.7,0.34966224]
[1659252253779,0.01881884,1703.3,1702.8,2.89804672]
[1659252254006,0.01881884,1703.3,1702.8,3.33894672]
[1659252254158,0.01881884,1703.3,1702.8,2.89804672]
[1659252255810,0.01881884,1703.3,1702.9,0.33209895]
[1659252255961,1.0,1703.4,1702.9,6.73014567]
[1659252256301,0.05,1703.6,1703.0,10.43884672]
[1659252256509,0.05,1703.7,1703.1,6.73014567]
[1659252256673,8.207,1704.0,1703.2,6.83884672]
[1659252256674,0.05,1703.9,1703.2,6.83884672]
[1659252256931,8.257,1704.0,1703.2,3.33884672]
[1659252257183,11.15504672,1704.0,1703.3,0.33209895]
[1659252257382,2.89804672,1703.9,1703.3,0.33209895]
[1659252257585,0.00383819,1703.6,1703.1,0.05]
[1659252257810,2.90188491,1703.6,1703.0,8.1847]
[1659252258108,2.90188491,1703.6,1703.0,0.36921055]
[1659252259204,2.92838832,1703.6,1703.0,0.36921055]
[1659252260161,2.89804672,1703.6,1703.1,3.5]
[1659252260362,2.89804672,1703.6,1703.2,0.35063453]
[1659252260811,0.05,1703.9,1703.2,0.35063453]
[1659252261053,2.89804672,1703.9,1703.2,0.35063453]
[1659252261810,2.90051213,1703.9,1703.2,0.79143453]
[1659252263312,2.90051213,1703.9,1703.2,0.35063453]
[1659252263748,0.01635343,1703.8,1703.2,0.35063453]
[1659252264599,0.01635343,1703.8,1703.3,2.89804672]
[1659252264897,0.01427056,1703.8,1703.3,3.33884672]
[1659252265879,0.01427056,1703.8,1703.3,2.89804672]
[1659252268064,0.01014998,1703.7,1703.2,0.79143453]
[1659252268301,0.01014998,1703.7,1703.2,0.35063453]
[1659252276639,0.01014998,1703.7,1703.2,0.30063453]
[1659252279867,1.5175,1703.9,1703.2,0.30063453]
[1659252280069,8.5004997,1704.0,1703.8,0.19616181]
[1659252280070,0.05,1704.0,1703.8,0.19616181]
[1659252280297,7.9419,1704.4,1703.9,0.28209895]
[1659252280509,7.8919,1704.4,1703.9,0.28209895]
[1659252280873,10.78994672,1704.4,1703.9,0.28209895]
[1659252284117,7.8919,1704.4,1703.9,0.28209895]
[1659252284323,0.07688597,1704.5,1703.9,0.28209895]
[1659252284476,0.05,1704.7,1704.3,0.19616181]
[1659252284682,11.1032,1704.8,1704.3,0.47826076]
[1659252284916,11.1032,1704.8,1704.6,0.19616181]
[1659252285094,7.8202,1704.8,1704.6,0.19616181]
[1659252286123,3.07403108,1704.7,1704.2,0.05]
[1659252286293,2.89804672,1704.6,1704.0,0.05]
[1659252286629,2.97877088,1704.6,1703.9,6.1355]
[1659252286782,2.89804672,1704.5,1703.9,6.1355]
[1659252286982,2.89804672,1704.5,1703.9,3.12969895]
[1659252287682,2.97493269,1704.5,1703.9,3.12969895]
[1659252288896,0.07688597,1704.5,1703.9,6.02774567]
[1659252289202,0.07688597,1704.5,1704.0,3.5]
[1659252289515,0.07688597,1704.5,1704.0,0.28209895]
[1659252292797,0.07688597,1704.5,1704.1,0.00269595]